Cogmind - Beta 16.1 *** ADVENTURER MODE // 2026.03.26 @ 22:05:11 Player: Sharded of Serpulo Result: Self-destructed Performance ------------- Evolutions (3) 1500 Regions Visited (5) 1000 Robots Destroyed (53) 265 Value Destroyed (1620) 1620 Prototype IDs (2) 40 Alien Tech Used (0) 0 Bonus (41) 41 TOTAL SCORE: 4466 Bonus ------- High Alert Combat Kills 41 Cogmind --------- Core Integrity 463/700 Matter 106/300 Energy 100/100 System Corruption 0% Temperature Cool (0) Movement Core (50) Location -7/Factory Parts ------- > --- POWER (1) -------- (None) > --- PROPULSION (6) --- (None) > --- UTILITY (4) ------ Hacking Suite Hacking Suite System Shield > --- WEAPON (2) ------- (None) > --- INVENTORY (5) ---- Improved Sensor Array Improved Medium Armor Plating Hacking Suite System Shield Peak State ------------ > --- POWER ------------ Micro Nuclear Core > --- PROPULSION ------- Improved Hover Unit Improved Hover Unit Improved Hover Unit > --- UTILITY ---------- Reaction Control System Hacking Suite Hacking Suite System Shield > --- WEAPON ----------- Heavy Particle Gun Gatling Laser > --- INVENTORY -------- Improved Medium Armor Plating Gatling Laser Gatling Laser Gatling Laser [Rating: 31] Favorites ----------- Power Micro Nuclear Core Engine Ion Engine Power Core Micro Nuclear Core Propulsion Improved Hover Unit Leg Aluminum Leg Hover Unit Improved Hover Unit Flight Unit Flight Unit Utility Hacking Suite Device Terrain Scanner Storage Small Storage Unit Hackware Hacking Suite Weapon Advanced Assault Cannon Energy Gun Gatling Laser Energy Cannon Light EM Pulse Cannon Ballistic Gun Light Assault Rifle Ballistic Cannon Advanced Assault Cannon Build | -11 -10 -9 -8 -8 -7 ------- Run | Yrd Mat Mat Mat Sto Fac Slots Evolved 6 | . . 2 2 . 2 Power . | . . . . . . Propulsion 4 | . . 2 1 . 1 Utility 2 | . . . 1 . 1 Weapon . | . . . . . . Parts Attached 51 | 6 1 23 10 4 7 Power 9 | 1 . 5 1 . 2 Engine 5 | 1 . 3 . . 1 Core 4 | . . 2 1 . 1 Reactor . | . . . . . . Propulsion 18 | 2 . 10 3 3 . Treads . | . . . . . . Leg 2 | 2 . . . . . Wheel . | . . . . . . Hover 3 | . . . . 3 . Flight 13 | . . 10 3 . . Utility 10 | 1 1 3 3 1 1 Device 5 | . 1 3 1 . . Storage 1 | 1 . . . . . Processor . | . . . . . . Hackware 4 | . . . 2 1 1 Protection . | . . . . . . Artifact . | . . . . . . Weapon 14 | 2 . 5 3 . 4 Energy Gun 6 | . . 3 3 . . Energy Cannon 1 | . . 1 . . . Ballistic Gun 3 | 2 . 1 . . . Ballistic Cannon 4 | . . . . . 4 Launcher . | . . . . . . Special Weapon . | . . . . . . Impact Weapon . | . . . . . . Slashing Weapon . | . . . . . . Piercing Weapon . | . . . . . . Special Melee Weapon . | . . . . . . Unidentified Prototypes 2 | . . 1 1 . . Parts Lost 15 | . . 5 2 . 8 Power 3 | . . 1 . . 2 Propulsion 9 | . . 4 2 . 3 Utility 1 | . . . . . 1 Weapon 2 | . . . . . 2 Highest Loss Streak 8 | . . 4 2 . 8 To Critical Strikes . | . . . . . . Average Backups 5 | 2 6 6 5 3 4 Power . | . 1 1 1 . 1 Propulsion 1 | . 3 2 1 . . Utility 1 | . . . . . 2 Weapon 1 | 1 1 1 2 3 . Tool/Special . | . . . . . . Unused Backups 17 | . 2 3 4 . 8 Power 5 | . . . 4 . 1 Propulsion 4 | . 2 1 . . 1 Utility 4 | . . . . . 4 Weapon 4 | . . 2 . . 2 Tool/Special . | . . . . . . Average Slot Usage (%) 85 | . 97 91 97 81 73 Engine 3 | . 14 5 . . . Core 5 | . . 5 9 9 6 Leg 6 | . 28 5 . . . Hover 11 | . . . . 22 21 Flight 11 | . . 31 45 4 . Device 6 | . 11 11 9 1 2 Storage 5 | . 14 11 5 . . Hackware 14 | . . . 10 25 27 Energy Gun 8 | . . 12 18 18 2 Ballistic Gun 6 | . 28 7 . . . Ballistic Cannon 4 | . . . . . 12 Peak Build Rating 31 | 6 7 16 29 30 31 Average Rating 20 | 4 6 10 25 27 30 On Entrance 13 | . 6 7 14 28 28 Avg Prop Armor Cover (%) . | . . . . . . Naked Turns . | . . . . . . Heaviest Build 19 | 12 13 16 19 14 19 Greatest Support 27 | 20 20 23 27 21 24 Greatest Overweight (x) 1 | . . 1 . . 1 Average Overweight (x) . | . . . . . . Largest Inventory Capacity 8 | 8 8 8 8 5 5 Average Capacity 6 | 7 8 8 6 5 5 Most Carried 8 | 6 8 8 8 5 5 Average Carried 5 | 2 6 6 5 3 4 Final Capacity 8 | 8 8 8 5 5 5 Final Carried 8 | 4 8 7 3 4 4 Class Distribution -------------------- 48% | Hacker-Mutant 26% | Mutant 17% | Scavenger-Sprinter 6% | Hacker-Sprinter Dominant Class ---------------- Mutant | -10/Materials Scavenger-Sprinter | -9/Materials Hacker-Sprinter | -8/Materials Hacker-Mutant | -8/Storage Hacker-Mutant | -7/Factory Resources | -11 -10 -9 -8 -8 -7 ----------- Run | Yrd Mat Mat Mat Sto Fac Matter Collected 1055 | 172 118 251 84 60 370 Remotely . | . . . . . . Salvage Created 1509 | . 47 597 170 178 517 Parts 106 | . 8 55 10 9 24 Haulers Intercepted . | . . . . . . Recyclers Shooed . | . . . . . . Parts Field Recycled . | . . . . . . Retrieved Matter . | . . . . . . Parts Self-Destructed . | . . . . . . Prevented . | . . . . . . Parts Restored . | . . . . . . Kills | -11 -10 -9 -8 -8 -7 ------- Run | Yrd Mat Mat Mat Sto Fac Combat Hostiles Destroyed 44 | . 2 20 2 4 16 Guns 26 | . 2 17 2 4 1 Cannons 18 | . . 3 . . 15 Classes Destroyed 10 | . 2 3 . . 5 Builder 1 | . . . . . 1 Recycler 1 | . . . . . 1 Operator 3 | . . 1 1 . 1 Watcher 4 | . 1 1 2 . . Swarmer 19 | . 2 11 . . 6 Grunt 13 | . . 5 1 2 5 Brawler 1 | . . . . . 1 Duelist 2 | . . . . . 2 Sentry 8 | . . 4 1 2 1 Programmer 1 | . . . . . 1 Best Kill Streak 7 | . 3 7 3 1 5 Combat Bots Only 7 | . 2 7 1 1 3 Max Kills in Single Turn 2 | . 1 2 1 1 1 Gunslinging . | . . . . . . Exploded . | . . . . . . Melee . | . . . . . . Uniques/NPCs Destroyed . | . . . . . . Combat | -11 -10 -9 -8 -8 -7 -------- Run | Yrd Mat Mat Mat Sto Fac Hostile Shots Fired 269 | . 16 74 25 10 144 Missed 103 | . 5 33 12 2 51 Hits 166 | . 11 41 13 8 93 Melee 8 | . . . . . 8 Projectile 158 | . 11 41 13 8 85 Critical Strikes 2 | . . . 1 . 1 Damage Taken 1772 | . 58 512 147 103 952 Core 413 | . 21 90 25 40 237 Absorbed by Shields . | . . . . . . Ignored by Resistances 529 | . 22 151 42 30 284 Regen/Repaired (Parts) 35 | . . . . 9 26 Core Remaining (%) 89 | 100 91 77 . 88 . Volleys Fired 123 | . 10 48 11 11 43 Largest 2 | . 2 2 2 2 2 Hottest 135 | . 40 80 135 135 135 Shots Fired 235 | . 20 91 22 22 80 Gun 147 | . 20 81 22 22 2 Cannon 88 | . . 10 . . 78 Launcher . | . . . . . . Special . | . . . . . . Kinetic 119 | . 20 21 . . 78 Thermal 106 | . . 60 22 22 2 Explosive . | . . . . . . Electromagnetic 10 | . . 10 . . . Robot Hit Streak 24 | . 3 24 17 14 11 Robot Miss Streak 3 | . 3 2 2 2 3 Penetration Max . | . . . . . . Secondary Targets 4 | . 1 3 . . . Max Gunslinging Chain 1 | . 1 1 . . . Shots Hit Robots 161 | . 8 67 17 15 54 Core Hits 89 | . 5 32 14 9 29 Critical Kills . | . . . . . . Critical Parts Destroyed . | . . . . . . Critical Strikes . | . . . . . . Melee Attacks . | . . . . . . Impact . | . . . . . . Slashing . | . . . . . . Piercing . | . . . . . . Sneak Attacks . | . . . . . . Combat Hostiles . | . . . . . . Follow-up Attacks . | . . . . . . Damage Inflicted 3362 | . 82 980 386 350 1564 Guns 1456 | . 82 615 386 350 23 Cannons 1754 | . . 213 . . 1541 Explosions 152 | . . 152 . . . Melee . | . . . . . . Ramming . | . . . . . . Kinetic 1720 | . 82 97 . . 1541 Thermal 1277 | . . 518 386 350 23 Explosive 152 | . . 152 . . . Electromagnetic 213 | . . 213 . . . Impact . | . . . . . . Slashing . | . . . . . . Piercing . | . . . . . . Highest Corruption 1 | . . 1 . . . Average Corruption 1 | . . 1 . . . Corruption Purged . | . . . . . . Corruption Blocked . | . . . . . . Overload Shots . | . . . . . . Overflow Damage 185 | . . 178 . . 7 Projectiles 44 | . . 37 . . 7 Explosions 141 | . . 141 . . . Melee . | . . . . . . Knockbacks 13 | . . . . . 13 Impact . | . . . . . . Kinetic 10 | . . . . . 10 Secondary 3 | . . . . . 3 Self-Inflicted Damage 175 | . . 175 . . . Shots 2 | . . 2 . . . Rammed . | . . . . . . Targets Rammed . | . . . . . . Kicked . | . . . . . . Crushed . | . . . . . . Highest Temperature 347 | . . 127 347 240 111 Average Temperature 80 | . . 42 151 86 32 Received Heat Transfer 519 | . . 123 99 63 234 Effects 2 | . . . 2 . . Interference 1 | . . . 1 . . Short Circuit 1 | . . . 1 . . Siege Activations . | . . . . . . Martial Activations . | . . . . . . Shielding Activations . | . . . . . . Robots Disrupted . | . . . . . . Combat Hostiles . | . . . . . . Robots Corrupted . | . . . . . . Combat Hostiles . | . . . . . . Parts Fried . | . . . . . . Impact Corruptions . | . . . . . . Robots Melted . | . . . . . . Combat Hostiles . | . . . . . . Parts Melted 6 | . . 2 . 4 . Heat Transferred 2792 | . . 1175 821 746 50 Parts Sabotaged . | . . . . . . Parts Stolen . | . . . . . . Parts Stripped . | . . . . . . Power Chain Reactions . | . . . . . . Alert | -11 -10 -9 -8 -8 -7 ------- Run | Yrd Mat Mat Mat Sto Fac Maximum Alert Level 2 | . . 2 1 . . Low Security (%) 89 | 100 100 46 95 100 100 Level 1 7 | . . 36 4 . . Level 2 3 | . . 17 . . . Level 3 . | . . . . . . Level 4 . | . . . . . . Level 5 . | . . . . . . High Security . | . . . . . . Max Security . | . . . . . . Peak Influence 479 | . 47 479 210 108 144 Initial 161 | . . . 161 72 20 Average 101 | . 8 239 165 78 72 Influence Increases 1447 | . 57 653 139 132 466 Destroy 0b10 Robot/C 880 | . 40 400 40 80 320 Destroy 0b10 Robot/NC 45 | . 5 10 15 . 15 Destroy Leader 198 | . 12 92 14 20 60 Successful Hack 86 | . . 26 10 32 18 Disable Machine 27 | . . 27 . . . Destroy Structure 31 | . . 23 . . 8 Partial Spotted 30 | . . . 30 . . Lose Combat Pursuer 150 | . . 75 30 . 45 Influence Decreases 1321 | . 57 204 388 278 394 Entered New Map 450 | . . . 288 128 34 Time Decay 742 | . 57 175 80 150 280 Lost Part 129 | . . 29 20 . 80 Squads Dispatched 6 | . . 1 1 . 4 Investigation 5 | . . 1 1 . 3 Extermination 1 | . . . . . 1 Reinforcement . | . . . . . . Assault . | . . . . . . Garrison . | . . . . . . Intercept . | . . . . . . Searches Triggered . | . . . . . . Construction Impeded . | . . . . . . Haulers Reinforced . | . . . . . . Active Scanning Responses . | . . . . . . Cargo Convoy Interrupts . | . . . . . . Stealth | -11 -10 -9 -8 -8 -7 --------- Run | Yrd Mat Mat Mat Sto Fac Distress Signals 5 | . . 1 2 1 1 Communications Jammed . | . . . . . . Distress Signals . | . . . . . . Times Spotted 79 | . 6 28 14 8 23 Peak Tracking Total 8 | . 6 6 8 3 7 Tactical Retreats 7 | . . 3 2 . 2 Traps | -11 -10 -9 -8 -8 -7 ------- Run | Yrd Mat Mat Mat Sto Fac Traps Triggered 4 | . . 1 1 1 1 Indirectly . | . . . . . . Trap Hack Attempts . | . . . . . . Triggered . | . . . . . . Disarmed . | . . . . . . Reprogrammed . | . . . . . . Reused . | . . . . . . Traps Extracted . | . . . . . . Installed . | . . . . . . Triggered . | . . . . . . Machines | -11 -10 -9 -8 -8 -7 ---------- Run | Yrd Mat Mat Mat Sto Fac Machines Disabled 3 | . . 3 . . . Max in Single Turn 3 | . . 3 . . . Machines Repaired . | . . . . . . Machines Dismantled . | . . . . . . Machines Sabotaged . | . . . . . . Overloaded Fab Kills . | . . . . . . Hacking | -11 -10 -9 -8 -8 -7 --------- Run | Yrd Mat Mat Mat Sto Fac Machines Accessed 24 | . 3 4 3 7 7 Terminals 16 | . 2 4 3 5 2 Fabricators 2 | . . . . . 2 Repair Stations 3 | . . . . 1 2 Recycling Units 2 | . 1 . . 1 . Scanalyzers 1 | . . . . . 1 Garrison Access . | . . . . . . Total Hacks 67 | . 6 13 9 19 20 Successful 34 | . 1 5 1 16 11 Failed 33 | . 5 8 8 3 9 Catastrophic 5 | . . 2 1 . 2 Database Lockouts . | . . . . . . Manual 39 | . 4 12 9 9 5 Terminals 47 | . 4 13 9 16 5 Fabricators 4 | . . . . . 4 Repair Stations 10 | . . . . 2 8 Recycling Units 3 | . 2 . . 1 . Scanalyzers 3 | . . . . . 3 Garrison Access . | . . . . . . Terminal Hacks 19 | . . 5 1 13 . Record 2 | . . . . 2 . Part Schematic 2 | . . 1 . 1 . Robot Analysis 1 | . . 1 . . . Open Door 2 | . . . . 2 . Level Access Points 3 | . . 1 . 2 . Branch Access Points 2 | . . 1 . 1 . Terminal Index 3 | . . 1 1 1 . Fabricator Index 1 | . . . . 1 . Scanalyzer Index 1 | . . . . 1 . Registered Prototypes 1 | . . . . 1 . Zone Layout 1 | . . . . 1 . Fabricator Hacks 4 | . . . . . 4 Load Schematic 2 | . . . . . 2 Build 2 | . . . . . 2 Repair Station Hacks 7 | . . . . 2 5 Scan Component 4 | . . . . 1 3 Repair 3 | . . . . 1 2 Recycling Unit Hacks 2 | . 1 . . 1 . Report Inventory 1 | . . . . 1 . Retrieve Components 1 | . 1 . . . . Scanalyzer 2 | . . . . . 2 Retrieve Study 2 | . . . . . 2 Garrison Access Hacks . | . . . . . . Unauthorized Hacks . | . . . . . . Terminals . | . . . . . . Fabricators . | . . . . . . Repair Stations . | . . . . . . Recycling Units . | . . . . . . Scanalyzers . | . . . . . . Garrison Access . | . . . . . . Data Cores Recovered 3 | . . 1 1 . 1 Used 1 | . . . 1 . . Hacking Detections 19 | . 3 4 3 3 6 Full Trace Events 5 | . 1 1 . . 3 Feedback Events 1 | . . 1 . . . Corruption 1 | . . 1 . . . Feedback Blocked . | . . . . . . Robot Schematics Acquired . | . . . . . . Robots Built . | . . . . . . Authchips . | . . . . . . Time . | . . . . . . Total Robot Build Rating . | . . . . . . Part Schematics Acquired 2 | . . 1 . 1 . Parts Built 3 | . . . . . 3 Authchips . | . . . . . . Time 67 | . . . . . 67 Total Part Build Rating 7 | . . . . . 7 Part Studies Acquired 2 | . . . . . 2 Parts Repaired 3 | . . . . 1 2 Time 64 | . . . . 32 32 Parts Recycled . | . . . . . . Recycled Matter . | . . . . . . Retrieved Matter . | . . . . . . Retrieved Components 3 | . 3 . . . . Parts Scanalyzed . | . . . . . . Part Schematics Acquired . | . . . . . . Parts Damaged . | . . . . . . Bothacking | -11 -10 -9 -8 -8 -7 ------------ Run | Yrd Mat Mat Mat Sto Fac Used RIF Installer . | . . . . . . Robots Hacked . | . . . . . . Non-combat . | . . . . . . Combat . | . . . . . . Robot Hacks Applied . | . . . . . . Relay Couplers Released . | . . . . . . Fabnet Peak Effective % . | . . . . . . Robots Rewired . | . . . . . . Allies Hacked . | . . . . . . Hacks Repelled . | . . . . . . Allies | -11 -10 -9 -8 -8 -7 -------- Run | Yrd Mat Mat Mat Sto Fac Total Allies . | . . . . . . Largest Group . | . . . . . . Highest-Rated Group . | . . . . . . Highest-Rated Ally . | . . . . . . Total Orders . | . . . . . . Ally Attacks . | . . . . . . Total Damage . | . . . . . . Kills . | . . . . . . Allies Corrupted . | . . . . . . Allies Melted . | . . . . . . Intel | -11 -10 -9 -8 -8 -7 ------- Run | Yrd Mat Mat Mat Sto Fac Active Infowar (turns) 461 | . 274 187 . . . Terrain 461 | . 274 187 . . . Robot Analysis Total 1 | . . 1 . . . Derelict Logs Recovered . | . . . . . . Drone Launches . | . . . . . . Drone Recoveries . | . . . . . . Exploration | -11 -10 -9 -8 -8 -7 ------------- Run | Yrd Mat Mat Mat Sto Fac Turns Passed 1862 | 64 325 369 173 318 613 Spaces Moved 2187 | 44 242 412 298 463 728 Core 6 | 6 . . . . . Treads . | . . . . . . Legs 322 | 38 242 42 . . . Wheels . | . . . . . . Hover 1122 | . . . . 394 728 Flight 737 | . . 370 298 69 . Fastest Speed 28 | 50 120 31 28 31 52 Average Speed 55 | 110 120 42 28 48 52 Slowest Speed 120 | 120 120 120 31 56 116 Overloaded Moves . | . . . . . . Propulsion Burnouts . | . . . . . . Robots Hopped 4 | . . 1 3 . . Potential Cave-ins . | . . . . . . Cave-ins Triggered . | . . . . . . Exploration Rate (%) 28 | 3 40 39 19 46 22 Regions Visited 5 Branch Regions 1 Pre-discovered Areas . | . . . . . . Known Exits Taken 2 | . . 1 . 1 . Unknown Exits Taken 3 | 1 1 . 1 . . Scrap Searched . | . . . . . . Spaces Dug . | . . . . . . Terrain Destroyed 31 | . . 23 . . 8 Melee . | . . . . . . Projectile 8 | . . . . . 8 AOE 23 | . . 23 . . . Terrain Rammed . | . . . . . . Walls Destroyed . | . . . . . . Machines Disabled . | . . . . . . Actions | -11 -10 -9 -8 -8 -7 --------- Run | Yrd Mat Mat Mat Sto Fac Total 2616 | 59 261 521 362 530 883 Wait 131 | . . 2 21 32 76 Move 2174 | 43 241 409 291 462 728 Hop 4 | . . 1 3 . . Pick Up 66 | 10 7 20 10 5 14 Fast Attach 3 | . . 1 1 . 1 Attach 34 | 6 1 14 5 3 5 Detach . | . . . . . . Swap 23 | . . 10 7 2 4 Drop 47 | . 2 16 13 4 12 Fire 123 | . 10 48 11 11 43 Melee . | . . . . . . Ram . | . . . . . . Kick . | . . . . . . Crush . | . . . . . . Escape Stasis 11 | . . . . 11 . Rewire . | . . . . . . Trap . | . . . . . . Miscellaneous . | . . . . . . Route ------- -11/Scrapyard -10/Materials -9/Materials (discovered 5 exits: *Mat x3 / *Min x2) -8/Materials -8/Storage (discovered 2 exits: *Fac / Rec) -7/Factory History --------- Turn | Location | Event 37 | -11/Scrapyard | Discovered new exit (range 16) 65 | -11/Scrapyard | Entered Materials 303 | -10/Materials | Build established: Mutant 331 | -10/Materials | Discovered new exit (range 13) 390 | -10/Materials | Entered another Materials area 390 | -9/Materials | Evolved 2 slots: Propulsion x2 448 | -9/Materials | Lost 4 parts (1p3n) 588 | -9/Materials | Discovered new exit (range 14) 597 | -9/Materials | Identified exit to Materials 597 | -9/Materials | Identified exit to Mines 602 | -9/Materials | Destroyed 7 combat bots 759 | -9/Materials | Entered another Materials area 759 | -8/Materials | Evolved 2 slots: Propulsion x1, Utility x1 765 | -8/Materials | Discovered new exit (range 15) 932 | -8/Materials | Entered Storage 985 | -8/Storage | Identified exit to Factory 985 | -8/Storage | Identified exit to Recycling 1125 | -8/Storage | Repaired Imp. Hover Unit 1250 | -8/Storage | Entered Factory 1250 | -7/Factory | Evolved 2 slots: Propulsion x1, Utility x1 1278 | -7/Factory | Build established: Hacker-Mutant 1377 | -7/Factory | Repaired Imp. Hover Unit+ 1481 | -7/Factory | Repaired Imp. Hover Unit+ 1547 | -7/Factory | Fabricated Hacking Suite (x1) 1833 | -7/Factory | Fabricated VTOL Module (x2) 1863 | -7/Factory | Self-destructed Last Messages --------------- Imp. Hover Unit+ destroyed. Lgt. Nuclear Core destroyed. L-41 Fighter knocked back. Imp. Hover Unit+ destroyed. Fabricator completes VTOL Module. L-41 Fighter knocked back. L-41 Fighter destroyed. C-30 ARC bursts open, deploying its payload. S-27 Virus unfolds itself. L-41 Fighter knocked back. Imp. Hover Unit+ destroyed. L-41 Fighter destroyed. K-01 Serf collects debris. Adv. Assault Cannon+ destroyed. Lgt. Deuterium Engine destroyed. Hacking Suite destroyed. Y-54 Guardian destroyed. Destroyed VTOL Module. U-05 Engineer destroyed. Adv. Assault Cannon+ destroyed. Map ----- +----------------------------------------------------+ | ???????????????????????????????+ + """ """ #?? | | ???????????????????????????????# # #?? | | ???????????????????????????????# # #?? | | ???????????????????????????????# + #?? | | ????????????????????????????####+#+#############?? | | ????????????????????????????# ] !#???????? | | ????????????????????????????# #???????? | | ????????????????????????????# """"""""" #???????? | | ?????????????????? ???????# #???????? | | ???????????????? ???????# """"""""" #???????? | | ???????????????# ???????# !#???????? | | ???????????????# ???????# """"""""" #???????? | | ???????????????# #??????# #???????? | | ???????????????/ +??????# """"""""" #???????? | | ???????????????# #??????# ######### | | ???????????????# #??????# """"""""" ## ] | | ???????????????# #??????# ^ ## | | ???????????????# #??????#########+##### | | ???????????????# ################ #"### / | | ???????????????# # | | ???????????????# # | | ???????????????# [ + | | ???????????????# != % % ! # ! | | ???????????????# usa *%= # | | ???????????????## ######g###########+##+# | | ????????????????# # @%! # # | | ????????????????# %s%% =% # # | | ????????????????#% # %! | # # | | ????????????????# #% %=%%%%# ######## | | ????????????????# # ""="" # """ #??????? | | ????????????????# # "F%"" # """"" #??????? | | ????????????????# # """"" # """"" #??????? | | ????????????????# ########## #??????? | | ????????????????# #????????# """ #??????? | | ???????????????? ?????????# """"" #??????? | | ???????????????? ?????????# """"" #??????? | | ???????????????? T" ?????????# #??????? | | ??????????????? " ?????????##############??????? | | ??????????????? ? ?????????????????????????????? | | ??????????????? ??? ?????????????????????????????? | | ??????????????????? ?????????????????????????????? | | ?????????????????????????????????????????????????? | | ?????????????????????????????????????????????????? | | ?????????????????????????????????????????????????? | | ?????????????????????????????????????????????????? | | ?????????????????????????????????????????????????? | | ?????????????????????????????????????????????????? | | ?????????????????????????????????????????????????? | | ?????????????????????????????????????????????????? | | ?????????????????????????????????????????????????? | +----------------------------------------------------+ Best States ------------- Heat Dissipation 42 Energy Generation 15 Energy Capacity 250 Matter Stores 300 Matter Capacity 300 Sight Range 16 Terrain Scan Range 14 Terrain Scan Density 10 Additional Mass Support 6 Resistance: KI 20 Resistance: TH 20 Resistance: EX 20 Resistance: EM 20 Resistance: I 20 Resistance: S 20 Resistance: P 20 Evasion (%) 71 Offensive Hacking 40 Defensive Hacking 10 Item Schematics ----------------- VTOL Module | -9/Materials | Hacked Hacking Suite | -8/Storage | Hacked Robot Schematics ------------------ None Fabricated ------------ Hacking Suite | x1 | -7/Factory VTOL Module | x2 | -7/Factory Repaired ---------- Imp. Hover Unit | 74% | -8/Storage Imp. Hover Unit | 60% | -7/Factory Imp. Hover Unit | 65% | -7/Factory Studied --------- Imp. Hover Unit | -7/Factory | Hacked Adv. Assault Cannon | -7/Factory | Hacked Alien Tech Used ----------------- None Achievements -------------- root@ Challenges ------------ None Game ------ Seed AluminumSmallManipulator Manual? 0 Play Time 00:46:57 Cumulative 14.0 hours Start 2026.03.26 @ 21:19:44 End 2026.03.26 @ 22:05:11 Sessions 1 Manual Loads 0 Difficulty Adventurer Special Mode None Game No. 18 Rogue 0 Adventurer 18 Explorer 0 Win Type - Total 0 Types 0/0/0/0/0/0/0/0/0/0 Lore% 10 Gallery% 16 Achievement% 15 Wizard Run 0 Options --------- Layout 1 ASCII 0 Keyboard 0 Movement Mouse Keybinds 0 Fullscreen 1 Font 32/Tamsyn Map View 50x35 Zoom Use 0% Tactical HUD 0 Map Filters NONE Filters NONE Steam 1 RUN: 0ac9203a-2f7b-4e32-b1e0-95d1184f4d04